fUST/lending_fUST_20250405
["ID","MTS","AMOUNT","RATE_DAILY","PERIOD"]
[357140107,1743785442388,-151.0,0.000239,7]
[357140108,1743785442398,-151.0,0.000239,7]
[357140110,1743785442409,-151.0,0.000239,7]
[357140111,1743785442419,-151.0,0.000239,7]
[357140112,1743785442430,-152.595496,0.000239,7]
[357140113,1743785442440,-151.0,0.000239,7]
[357140114,1743785442451,-151.0,0.000239,7]
[357140115,1743785442461,-151.0,0.000239,7]
[357140116,1743785442471,-151.0,0.000239,7]
[357140117,1743785442482,-160.94873672,0.000239,7]
[357140118,1743785442492,-151.0,0.000239,7]
[357140119,1743785442502,-286.227846,0.000239,2]
[357140120,1743785442512,-286.227846,0.000239,2]
[357140121,1743785442522,-539.126747,0.000239,7]
[357140122,1743785442533,-539.126747,0.000239,7]
[357140123,1743785442543,-151.0,0.000239,7]
[357140124,1743785442554,-500.0,0.00023973,2]
[357140125,1743785442565,-500.0,0.00023973,2]
[357140126,1743785442577,-500.0,0.00023999,2]
[357140127,1743785442592,-500.0,0.00023999,2]
[357140128,1743785442601,-355.45228376,0.00023999,2]
[357140129,1743785442612,-6350.89278799,0.00024,2]
[357140130,1743785442624,-23275.32567241,0.00024,2]
[357140154,1743785443578,-6869.33413422,0.00024,2]
[357140206,1743785446727,-350.288,0.00023479,2]
[357140255,1743786262082,332.46446656,0.000145,7]
[357140341,1743786632903,-169.54,0.00013699,2]
[357140343,1743786632914,-169.54,0.00013699,2]
[357140345,1743786632924,-169.54,0.00013699,2]
[357140347,1743786632934,-169.54,0.00013699,2]
[357140349,1743786632943,-169.54,0.00013699,2]
[357140351,1743786632953,-169.54768236,0.00013699,2]
[357140354,1743786632962,-172.972592,0.00013699,2]
[357140357,1743786632975,-300.0,0.00014832,2]
[357140360,1743786632984,-392.86733601,0.00014833,2]
[357140364,1743786632994,-2686.72287886,0.00014833,2]
[357140367,1743786633004,-506.38437166,0.0001485,2]
[357140369,1743786633015,-500.54745208,0.0001485,2]
[357140371,1743786633027,-500.0,0.0001485,2]
[357140373,1743786633037,-500.0,0.0001485,2]
[357140375,1743786633048,-500.0,0.0001485,2]
[357140377,1743786633059,-500.0,0.0001485,2]
[357140379,1743786633069,-500.0,0.0001485,2]
[357140381,1743786633080,-209.16619909,0.0001485,2]
[357140384,1743786633093,-500.0,0.0001485,2]
[357140385,1743786633105,-500.0,0.0001485,2]
[357140387,1743786633115,-500.0,0.0001485,2]
[357140389,1743786633126,-500.01079183,0.0001485,2]
[357140391,1743786633136,-502.58710857,0.0001485,2]
[357140393,1743786633147,-265.25930081,0.0001485,2]
[357140395,1743786633157,-500.0,0.0001485,2]
[357140397,1743786633168,-500.0,0.0001485,2]
[357140399,1743786633179,-504.69515223,0.0001485,2]
[357140401,1743786633189,-500.0,0.0001485,2]
[357140403,1743786633199,-500.0,0.0001485,2]
[357140405,1743786633209,-500.0,0.0001485,2]
[357140406,1743786633219,-500.0,0.0001535,2]
[357140408,1743786633229,-24549.712,0.00015883,2]
[357140409,1743786633238,-420.0,0.00016236,2]
[357140410,1743786633249,-152.0,0.00016466,2]
[357140412,1743786633259,-1051.04679173,0.000169,2]
[357140413,1743786633268,-151.0,0.0001699,2]
[357140414,1743786633278,-151.0,0.0001699,2]
[357140415,1743786633288,-14675.67119378,0.00017,2]
[357140416,1743786633297,-1691.18896011,0.00017593,2]
[357140417,1743786633307,-1051.04679156,0.00017693,2]
[357140418,1743786633318,-587.0,0.00017772,2]
[357140419,1743786633327,-1051.04679156,0.00018486,2]
[357140420,1743786633337,-162.669405,0.00018668,2]
[357140422,1743786633349,-162.669405,0.00018691,2]
[357140424,1743786633358,-162.669405,0.00018715,2]
[357140425,1743786633368,-162.669405,0.00018738,2]
[357140426,1743786633378,-162.669405,0.00018761,2]
[357140427,1743786633388,-500.0,0.00018899,2]
[357140428,1743786633398,-603.94,0.00018899,2]
[357140429,1743786633408,-500.0,0.00018899,2]
[357140430,1743786633417,-500.0,0.00018899,2]
[357140431,1743786633427,-500.0,0.00018899,2]
[357140432,1743786633437,-500.0,0.00018899,2]
[357140433,1743786633447,-500.0,0.00018899,2]
[357140434,1743786633457,-500.0,0.00018899,2]
[357140435,1743786633467,-500.0,0.00018899,2]
[357140436,1743786633477,-500.0,0.00018899,2]
[357140437,1743786633487,-603.94,0.00019173,2]
[357140438,1743786633496,-500.0,0.00019173,2]
[357140439,1743786633506,-500.0,0.00019173,2]
[357140440,1743786633516,-500.0,0.00019173,2]
[357140441,1743786633526,-500.0,0.00019173,2]
[357140442,1743786633536,-500.0,0.00019173,2]
[357140443,1743786633546,-500.0,0.00019173,2]
[357140444,1743786633557,-500.0,0.00019173,2]
[357140445,1743786633569,-500.0,0.00019173,2]
[357140446,1743786633579,-1051.04679156,0.00019279,2]
[357140447,1743786633591,-603.94,0.00019447,2]
[357140448,1743786633606,-500.0,0.00019447,2]
[357140449,1743786633618,-500.0,0.00019447,2]
[357140450,1743786633630,-500.0,0.00019447,2]
[357140451,1743786633642,-500.0,0.00019447,2]
[357140452,1743786633654,-500.0,0.00019447,2]
[357140453,1743786633665,-500.0,0.00019447,2]
[357140454,1743786633675,-500.0,0.00019447,2]
[357140455,1743786633686,-500.0,0.00019447,2]
[357140456,1743786633698,-603.94,0.00019721,2]
[357140457,1743786633709,-500.0,0.00019721,2]
[357140458,1743786633721,-500.0,0.00019721,2]
[357140459,1743786633733,-500.0,0.00019721,2]
[357140460,1743786633745,-500.0,0.00019721,2]
[357140461,1743786633756,-549.75,0.00019721,2]
[357140462,1743786633767,-500.0,0.00019721,2]
[357140463,1743786633778,-500.0,0.00019721,2]
[357140464,1743786633791,-500.0,0.00019721,2]
[357140465,1743786633802,-425.9500883,0.00019764,2]
[357140466,1743786633814,-276.82148499,0.00019972,2]
[357140467,1743786633825,-603.94,0.00019995,2]
[357140468,1743786633836,-522.52,0.00019995,2]
[357140469,1743786633851,-500.0,0.00019995,2]
[357140470,1743786633862,-500.0,0.00019995,2]
[357140471,1743786633873,-500.0,0.00019995,2]
[357140472,1743786633883,-500.0,0.00019995,2]
[357140473,1743786633893,-500.0,0.00019995,2]
[357140474,1743786633903,-500.0,0.00019995,2]
[357140475,1743786633913,-1051.04679156,0.00020072,2]
[357140476,1743786633923,-180.76436103,0.0002008,2]
[357140477,1743786633933,-603.94,0.00020269,2]
[357140478,1743786633943,-500.0,0.00020269,2]
[357140479,1743786633953,-500.0,0.00020269,2]
[357140480,1743786633963,-500.0,0.00020269,2]
[357140481,1743786633974,-500.0,0.00020269,2]
[357140482,1743786633988,-1000.0,0.00020329,2]
[357140483,1743786633999,-1000.0,0.00020329,2]
[357140484,1743786634008,-1000.0,0.00020329,2]
[357140485,1743786634020,-603.94,0.00020543,2]
[357140486,1743786634030,-500.0,0.00020543,2]
[357140487,1743786634040,-500.0,0.00020543,2]
[357140488,1743786634050,-500.0,0.00020543,2]
[357140489,1743786634070,-500.0,0.00020543,2]
[357140490,1743786634080,-9358.2220488,0.0002059,2]
[357140491,1743786634090,-1691.18896005,0.0002078,2]
[357140492,1743786634101,-603.94,0.00020817,2]
[357140493,1743786634111,-500.0,0.00020817,2]
[357140494,1743786634121,-500.0,0.00020817,2]
[357140495,1743786634131,-500.0,0.00020817,2]
[357140496,1743786634140,-500.0,0.00020817,2]
[357140497,1743786634150,-542.0,0.00020832,2]
[357140498,1743786634160,-1051.04679156,0.00020866,3]
[357140499,1743786634170,-603.94,0.00021091,2]
[357140500,1743786634180,-500.0,0.00021091,2]
[357140501,1743786634190,-500.0,0.00021091,2]
[357140502,1743786634199,-500.0,0.00021091,2]
[357140503,1743786634209,-500.0,0.00021091,2]
[357140504,1743786634219,-500.0,0.00021319,2]
[357140505,1743786634230,-500.0,0.00021319,2]
[357140506,1743786634240,-603.94,0.00021365,2]
[357140507,1743786634417,-500.0,0.00021365,2]
[357140508,1743786634427,-500.0,0.00021365,2]
[357140509,1743786634437,-500.0,0.00021365,2]
[357140510,1743786634447,-500.0,0.00021365,2]
[357140511,1743786634457,-276.82148499,0.00021543,2]
[357140512,1743786634468,-500.0,0.00021554,2]
[357140513,1743786634478,-500.0,0.00021554,2]
[357140514,1743786634488,-500.0,0.00021554,2]
[357140515,1743786634497,-500.0,0.00021554,2]
[357140516,1743786634507,-500.0,0.00021554,2]
[357140517,1743786634519,-500.0,0.00021554,2]
[357140518,1743786634530,-500.0,0.00021554,2]
[357140519,1743786634539,-500.0,0.00021554,2]
[357140520,1743786634550,-500.0,0.00021554,2]
[357140521,1743786634562,-500.0,0.00021554,2]
[357140522,1743786634574,-500.0,0.00021554,2]
[357140523,1743786634584,-500.0,0.00021554,2]
[357140524,1743786634595,-500.0,0.00021554,2]
[357140525,1743786634604,-500.0,0.00021554,2]
[357140526,1743786634614,-500.0,0.00021554,2]
[357140527,1743786634624,-500.0,0.00021554,2]
[357140528,1743786634634,-500.0,0.00021554,2]
[357140529,1743786634645,-500.0,0.00021554,2]
[357140530,1743786634655,-500.0,0.00021554,2]
[357140531,1743786634665,-500.0,0.00021554,2]
[357140532,1743786634674,-513.72,0.00021554,2]
[357140533,1743786634684,-500.0,0.00021554,2]
[357140534,1743786634694,-500.0,0.00021554,2]
[357140535,1743786634703,-500.0,0.00021554,2]
[357140536,1743786634713,-603.94,0.00021639,2]
[357140537,1743786634723,-500.0,0.00021639,2]
[357140538,1743786634732,-500.0,0.00021639,2]
[357140539,1743786634742,-500.0,0.00021639,2]
[357140540,1743786634752,-500.0,0.00021639,2]
[357140541,1743786634761,-1051.04679156,0.00021659,3]
[357140542,1743786634771,-500.0,0.00021828,2]
[357140543,1743786634780,-500.0,0.00021828,2]
[357140544,1743786634789,-500.0,0.00021828,2]
[357140545,1743786634799,-500.0,0.00021828,2]
[357140546,1743786634809,-500.0,0.00021828,2]
[357140547,1743786634818,-500.0,0.00021828,2]
[357140548,1743786634827,-500.0,0.00021828,2]
[357140549,1743786634836,-500.0,0.00021828,2]
[357140550,1743786634846,-500.0,0.00021828,2]
[357140551,1743786634856,-500.0,0.00021828,2]
[357140552,1743786634866,-500.0,0.00021828,2]
[357140553,1743786634875,-500.0,0.00021828,2]
[357140554,1743786634885,-500.0,0.00021828,2]
[357140555,1743786634894,-500.0,0.00021828,2]
[357140556,1743786634904,-500.0,0.00021828,2]
[357140557,1743786634913,-500.0,0.00021828,2]
[357140558,1743786634922,-500.0,0.00021828,2]
[357140559,1743786634932,-500.0,0.00021828,2]
[357140560,1743786634941,-500.0,0.00021828,2]
[357140561,1743786634950,-500.0,0.00021828,2]
[357140562,1743786634959,-513.72,0.00021828,2]
[357140563,1743786634968,-500.0,0.00021828,2]
[357140564,1743786634980,-500.0,0.00021828,2]
[357140565,1743786634989,-500.0,0.00021828,2]
[357140566,1743786634998,-603.94,0.00021913,2]
[357140567,1743786635007,-500.0,0.00021913,2]
[357140568,1743786635017,-500.0,0.00021913,2]
[357140569,1743786635026,-500.0,0.00021913,2]
[357140570,1743786635035,-500.0,0.00021913,2]
[357140571,1743786635045,-1703.26174172,0.000221,2]
[357140572,1743786635056,-500.0,0.00022102,2]
[357140573,1743786635065,-500.0,0.00022102,2]
[357140574,1743786635075,-500.0,0.00022102,2]
[357140575,1743786635087,-643.79,0.00022102,2]
[357140576,1743786635098,-500.0,0.00022102,2]
[357140577,1743786635108,-500.0,0.00022102,2]
[357140578,1743786635117,-500.0,0.00022102,2]
[357140579,1743786635127,-500.0,0.00022102,2]
[357140580,1743786635136,-500.0,0.00022102,2]
[357140581,1743786635146,-618.17706456,0.00022102,2]
[357140582,1743786635155,-500.0,0.00022102,2]
[357140583,1743786635167,-500.0,0.00022102,2]
[357140584,1743786635177,-500.0,0.00022102,2]
[357140585,1743786635187,-500.0,0.00022102,2]
[357140586,1743786635197,-500.0,0.00022102,2]
[357140587,1743786635206,-500.0,0.00022102,2]
[357140588,1743786635216,-500.0,0.00022102,2]
[357140589,1743786635225,-500.0,0.00022102,2]
[357140590,1743786635234,-500.0,0.00022102,2]
[357140591,1743786635244,-500.0,0.00022102,2]
[357140592,1743786635253,-513.72,0.00022102,2]
[357140593,1743786635263,-500.0,0.00022102,2]
[357140594,1743786635273,-500.0,0.00022102,2]
[357140595,1743786635282,-500.0,0.00022102,2]
[357140596,1743786635291,-170.88163231,0.00022135,2]
[357140597,1743786635301,-500.0,0.00022176,2]
[357140598,1743786635310,-603.94,0.00022187,2]
[357140599,1743786635319,-500.0,0.00022187,2]
[357140600,1743786635329,-500.0,0.00022187,2]
[357140601,1743786635339,-500.0,0.00022187,2]
[357140602,1743786635351,-500.0,0.00022187,2]
[357140603,1743786635360,-500.0,0.00022223,2]
[357140604,1743786635369,-2796.6152689,0.00022224,2]
[357140605,1743786635379,-5552.2764141,0.00022235,2]
[357140606,1743786635389,-500.0,0.000223,2]
[357140607,1743786635398,-500.0,0.000223,2]
[357140608,1743786635408,-500.0,0.000223,2]
[357140609,1743786635418,-500.0,0.000223,2]
[357140610,1743786635427,-524.16083288,0.00022375,2]
[357140611,1743786635437,-500.0,0.00022375,2]
[357140612,1743786635446,-500.0,0.00022375,2]
[357140613,1743786635456,-500.0,0.00022375,2]
[357140614,1743786635465,-500.0,0.00022375,2]
[357140615,1743786635475,-178.61923937,0.00022375,2]
[357140616,1743786635484,-500.0,0.00022376,2]
[357140617,1743786635494,-500.0,0.00022376,2]
[357140618,1743786635504,-319.84,0.00022376,2]
[357140619,1743786635513,-500.0,0.00022376,2]
[357140620,1743786635523,-500.0,0.00022376,2]
[357140621,1743786635534,-500.0,0.00022376,2]
[357140622,1743786635543,-500.0,0.00022376,2]
[357140623,1743786635553,-500.0,0.00022376,2]
[357140624,1743786635563,-500.0,0.00022376,2]
[357140625,1743786635573,-500.0,0.00022376,2]
[357140626,1743786635583,-629.8,0.00022376,2]
[357140627,1743786635594,-533.36,0.00022376,2]
[357140628,1743786635604,-500.0,0.00022376,2]
[357140629,1743786635614,-500.0,0.00022376,2]
[357140630,1743786635624,-500.0,0.00022376,2]
[357140631,1743786635634,-500.0,0.00022376,2]
[357140632,1743786635644,-500.0,0.00022376,2]
[357140633,1743786635653,-500.0,0.00022376,2]
[357140634,1743786635662,-513.72,0.00022376,2]
[357140635,1743786635671,-500.0,0.00022376,2]
[357140636,1743786635679,-500.0,0.00022376,2]
[357140637,1743786635688,-500.0,0.00022376,2]
[357140638,1743786635696,-1051.04679156,0.00022452,4]
[357140639,1743786635705,-603.94,0.00022461,2]
[357140640,1743786635715,-500.0,0.00022461,2]
[357140641,1743786635723,-500.0,0.00022461,2]
[357140642,1743786635732,-500.0,0.00022461,2]
[357140643,1743786635741,-500.0,0.00022461,2]
[357140644,1743786635750,-500.0,0.00022496,2]
[357140645,1743786635758,-12520.15255516,0.00022526,2]
[357140646,1743786635767,-160.0,0.00022573,2]
[357140647,1743786635777,-500.0,0.0002265,2]
[357140648,1743786635786,-500.0,0.0002265,2]
[357140649,1743786635795,-500.0,0.0002265,2]
[357140650,1743786635803,-500.0,0.0002265,2]
[357140651,1743786635812,-500.0,0.0002265,2]
[357140652,1743786635821,-318.76,0.0002265,2]
[357140653,1743786635830,-317.68,0.0002265,2]
[357140654,1743786635840,-500.0,0.0002265,2]
[357140655,1743786635849,-500.0,0.0002265,2]
[357140656,1743786635858,-500.0,0.0002265,2]
[357140657,1743786635867,-500.0,0.0002265,2]
[357140658,1743786635876,-431.301397,0.0002265,7]
[357140659,1743786635885,-431.301397,0.0002265,7]
[357140660,1743786635892,-513.72,0.0002265,2]
[357140661,1743786635899,-428.64,0.0002265,2]
[357140662,1743786635908,-500.0,0.0002265,2]
[357140663,1743786635915,-500.0,0.0002265,2]
[357140664,1743786635922,-603.94,0.00022735,2]
[357140665,1743786635929,-500.0,0.00022735,2]
[357140666,1743786635936,-500.0,0.00022735,2]
[357140667,1743786635944,-500.0,0.00022735,2]
[357140668,1743786635951,-500.0,0.00022735,2]
[357140669,1743786635957,-500.0,0.0002277,2]
[357140670,1743786635964,-277.58,0.00022924,2]
[357140671,1743786635972,-259.2,0.00022924,2]
[357140672,1743786635983,-500.0,0.00022924,2]
[357140673,1743786635991,-500.0,0.00022924,2]
[357140674,1743786635998,-500.0,0.00022924,2]
[357140675,1743786636007,-379.96,0.00022924,2]
[357140676,1743786636018,-500.0,0.00022924,2]
[357140677,1743786636028,-500.0,0.00022924,2]
[357140678,1743786636037,-500.0,0.00022924,2]
[357140679,1743786636047,-513.72,0.00022924,2]
[357140680,1743786636058,-523.56,0.00022924,2]
[357140681,1743786636069,-500.0,0.00022924,2]
[357140682,1743786636078,-5352.59910242,0.0002299,2]
[357140683,1743786636089,-603.94,0.00023009,2]
[357140684,1743786636100,-500.0,0.00023009,2]
[357140685,1743786636110,-500.0,0.00023009,2]
[357140686,1743786636120,-500.0,0.00023043,2]
[357140687,1743786636129,-500.0,0.00023043,2]
[357140688,1743786636139,-500.0,0.00023043,2]
[357140689,1743786636149,-500.0,0.00023043,2]
[357140690,1743786636158,-500.0,0.00023043,2]
[357140691,1743786636168,-500.0,0.00023043,2]
[357140692,1743786636178,-500.0,0.00023043,2]
[357140693,1743786636187,-500.0,0.00023043,2]
[357140694,1743786636196,-236.62627961,0.00023043,2]
[357140716,1743786638629,-263.37372039,0.00023043,2]
[357140717,1743786638640,-500.0,0.00023043,2]
[357140718,1743786638650,-500.0,0.00023043,2]
[357140719,1743786638660,-500.0,0.00023043,2]
[357140720,1743786638670,-500.0,0.00023043,2]
[357140721,1743786638680,-500.0,0.00023043,2]
[357140722,1743786638690,-426.43125235,0.00023043,2]
[357140723,1743786638702,-73.56874765,0.00023043,2]
[357140724,1743786638712,-500.0,0.00023043,2]
[357140725,1743786638722,-500.0,0.00023043,2]
[357140726,1743786638731,-500.0,0.00023043,2]
[357140727,1743786638745,-500.0,0.00023043,2]
[357140728,1743786638755,-500.0,0.00023043,2]
[357140729,1743786638764,-500.0,0.00023043,2]
[357140730,1743786638773,-151.0,0.00023043,7]
[357140731,1743786638783,-151.0,0.00023043,7]
[357140732,1743786638793,-500.0,0.00023043,2]
[357140733,1743786638802,-500.0,0.00023043,2]
[357140734,1743786638811,-500.0,0.00023043,2]
[357140735,1743786638821,-500.0,0.00023043,2]
[357140736,1743786638831,-500.0,0.00023044,2]
[357140737,1743786638841,-276.82148499,0.00023113,2]
[357140738,1743786638855,-500.0,0.00023198,2]
[357140739,1743786638864,-292.64,0.00023198,2]
[357140740,1743786638874,-500.0,0.00023198,2]
[357140741,1743786638883,-500.0,0.00023198,2]
[357140742,1743786638892,-500.0,0.00023198,2]
[357140743,1743786638902,-513.72,0.00023198,2]
[357140744,1743786638912,-500.0,0.00023198,2]
[357140745,1743786638922,-500.0,0.00023212,2]
[357140746,1743786638932,-163.55268246,0.00023212,2]
[357140747,1743786638942,-1051.04679156,0.00023245,4]
[357140748,1743786638951,-431.301397,0.00023245,7]
[357140749,1743786638961,-431.301397,0.00023245,7]
[357140750,1743786638972,-1190.8792708,0.00023279,2]
[357140751,1743786638985,-603.94,0.00023283,2]
[357140752,1743786638995,-500.0,0.00023283,2]
[357140753,1743786639004,-151.0,0.00023283,2]
[357140754,1743786639015,-200.0,0.00023283,2]
[357140755,1743786639025,-500.0,0.00023283,2]
[357140756,1743786639035,-500.0,0.00023297,2]
[357140757,1743786639044,-558.2904257,0.00023297,2]
[357140758,1743786639057,-500.0,0.00023297,2]
[357140759,1743786639067,-504.54313545,0.00023297,2]
[357140760,1743786639076,-500.0,0.00023297,2]
[357140761,1743786639086,-500.0,0.00023297,2]
[357140762,1743786639095,-1017.5606,0.00023297,2]
[357140763,1743786639105,-1017.5606,0.00023297,2]
[357140764,1743786639114,-500.0,0.00023317,2]
[357140765,1743786639125,-500.0,0.00023317,2]
[357140766,1743786639136,-500.0,0.00023317,2]
[357140767,1743786639146,-500.0,0.00023317,2]
[357140768,1743786639157,-500.0,0.00023317,2]
[357140769,1743786639167,-500.0,0.00023317,2]
[357140770,1743786639176,-500.0,0.00023317,2]
[357140771,1743786639185,-500.0,0.00023317,2]
[357140772,1743786639194,-500.0,0.00023317,2]
[357140773,1743786639203,-211.98346739,0.00023317,2]
[357140856,1743786640875,-288.01653261,0.00023317,2]
[357140857,1743786640886,-500.0,0.00023317,2]
[357140858,1743786640896,-500.0,0.00023317,2]
[357140859,1743786640906,-500.0,0.00023317,2]
[357140860,1743786640916,-500.0,0.00023317,2]
[357140861,1743786640926,-500.0,0.00023317,2]
[357140862,1743786640935,-500.0,0.00023317,2]
[357140863,1743786640945,-500.0,0.00023317,2]
[357140864,1743786640955,-500.0,0.00023317,2]
[357140865,1743786640964,-151.0,0.00023317,7]
[357140866,1743786640977,-151.0,0.00023317,7]
[357140867,1743786640989,-500.0,0.00023317,2]
[357140868,1743786640999,-500.0,0.00023317,2]
[357140869,1743786641008,-500.0,0.00023317,2]
[357140870,1743786641019,-500.0,0.00023317,2]
[357140871,1743786641029,-500.29721193,0.00023318,2]
[357140872,1743786641039,-500.0,0.00023472,2]
[357140873,1743786641048,-500.0,0.00023472,2]
[357140874,1743786641059,-500.0,0.00023472,2]
[357140875,1743786641070,-478.48,0.00023472,2]
[357140876,1743786641080,-513.72,0.00023472,2]
[357140878,1743786641203,-500.0,0.00023472,2]
[357140879,1743786641215,-656.1870621,0.00023478,3]
[357140880,1743786641225,-2510.47204751,0.00023478,3]
[357140881,1743786641235,-151.0,0.00023479,7]
[357140882,1743786641244,-156.0,0.00023479,7]
[357140883,1743786641254,-151.0,0.00023479,7]
[357140884,1743786641264,-152.225998,0.00023479,7]
[357140885,1743786641274,-1017.5606,0.00023479,2]
[357140886,1743786641284,-1017.5606,0.00023479,2]
[357140887,1743786641294,-151.0,0.00023479,7]
[357140888,1743786641303,-188.0,0.00023479,7]
[357140889,1743786641313,-431.301397,0.00023479,7]
[357140890,1743786641322,-431.301397,0.00023479,7]
[357140891,1743786641332,-603.94,0.00023557,2]
[357140892,1743786641343,-500.0,0.00023557,2]
[357140893,1743786641354,-500.0,0.00023571,2]
[357140894,1743786641364,-468.36880355,0.00023577,2]
[357140895,1743786641374,-500.0,0.0002359,2]
[357140896,1743786641384,-281.82756236,0.0002359,2]
[357140897,1743786641394,-500.0,0.0002359,2]
[357140898,1743786641404,-500.0,0.00023591,2]
[357140899,1743786641414,-500.0,0.00023591,2]
[357140900,1743786641423,-500.0,0.00023591,2]
[357140901,1743786641433,-500.0,0.00023591,2]
[357140902,1743786641443,-614.74413289,0.00023591,2]
[357140903,1743786641453,-500.0,0.00023591,2]
[357140904,1743786641462,-500.0,0.00023591,2]
[357140905,1743786641472,-500.0,0.00023591,2]
[357140906,1743786641481,-500.0,0.00023591,2]
[357140907,1743786641491,-500.0,0.00023591,2]
[357140908,1743786641500,-500.0,0.00023591,2]
[357140909,1743786641510,-500.0,0.00023591,2]
[357140910,1743786641519,-500.0,0.00023591,2]
[357140911,1743786641528,-500.0,0.00023591,2]
[357140912,1743786641538,-500.0,0.00023591,2]
[357140913,1743786641547,-500.0,0.00023591,2]
[357140914,1743786641557,-500.0,0.00023591,2]
[357140915,1743786641566,-500.0,0.00023591,2]
[357140916,1743786641576,-405.01359513,0.00023591,2]
[357140917,1743786641586,-500.0,0.00023591,2]
[357140918,1743786641595,-500.0,0.00023591,2]
[357140919,1743786641606,-500.0,0.00023591,2]
[357140920,1743786641616,-500.0,0.00023746,2]
[357140921,1743786641625,-500.0,0.00023746,2]
[357140922,1743786641635,-500.0,0.00023746,2]
[357140923,1743786641644,-513.72,0.00023746,2]
[357140924,1743786641653,-500.0,0.00023746,2]
[357140925,1743786641662,-3722.67141504,0.000238,2]
[357140926,1743786641673,-603.94,0.00023831,2]
[357140927,1743786641683,-151.0,0.00023831,2]
[357140928,1743786641692,-500.0,0.00023831,2]
[357140929,1743786641702,-500.0,0.00023845,2]
[357140930,1743786641712,-151.0,0.00023845,7]
[357140931,1743786641721,-151.0,0.00023845,7]
[357140932,1743786641731,-169.09802,0.00023845,7]
[357140933,1743786641742,-169.09802,0.00023845,7]
[357140934,1743786641752,-151.0,0.00023845,7]
[357140935,1743786641762,-151.0,0.00023845,7]
[357140936,1743786641772,-1017.5606,0.00023845,2]
[357140937,1743786641781,-1017.5606,0.00023845,2]
[357140938,1743786641791,-431.301397,0.00023845,7]
[357140939,1743786641800,-431.301397,0.00023845,7]
[357140940,1743786641810,-500.0,0.00023865,2]
[357140941,1743786641819,-500.0,0.00023865,2]
[357140942,1743786641829,-500.0,0.00023865,2]
[357140943,1743786641839,-500.0,0.00023865,2]
[357140944,1743786641849,-500.0,0.00023865,2]
[357140945,1743786641858,-500.0,0.00023865,2]
[357140946,1743786641868,-242.28616002,0.00023865,2]
[357140947,1743786641877,-202.53179849,0.00023865,2]
[357140948,1743786641887,-192.7356437,0.00023865,2]
[357140949,1743786641896,-502.63476589,0.00023865,2]
[357140950,1743786641905,-500.0,0.00023865,2]
[357140951,1743786641915,-500.0,0.00023865,2]
[357140952,1743786641924,-500.0,0.00023865,2]
[357140953,1743786641934,-500.0,0.00023865,2]
[357140954,1743786641943,-500.0,0.00023865,2]
[357140955,1743786641953,-500.0,0.00023865,2]
[357140956,1743786641963,-500.0,0.00023865,2]
[357140957,1743786641972,-151.0,0.00023865,7]